bitfinex-derivatives/quotes_SOLF0:USTF0_20260308
["timestamp","ask_amount","ask_price","bid_price","bid_amount"]
[1772939901041,8.92426117,82.599,82.54,2.73431027]
[1772939901238,8.92426117,82.599,82.55,2.73431027]
[1772939902628,8.92454175,82.589,82.53,2.73431027]
[1772939903742,8.92465354,82.583,82.53,2.73431027]
[1772939905840,8.9255929,82.581,82.53,2.73431027]
[1772939906339,21.79,82.619,82.5,62.0]
[1772939906340,8.91533112,82.579,82.54,2.73431027]
[1772939906530,8.91533112,82.579,82.54,2.73691026]
[1772939909335,8.91533112,82.579,82.55,2.73691026]
[1772939916245,8.92103257,82.598,82.56,2.73691026]
[1772939916640,8.92103257,82.598,82.552,10.903]
[1772939917852,8.92112344,82.595,82.552,10.903]
[1772939919648,8.92112344,82.595,82.55,2.73691026]
[1772939920747,8.92112344,82.595,82.552,10.903]
[1772939921449,2.73691026,82.61,82.55,2.73691026]
[1772939921450,8.9300681,82.592,82.55,2.73691026]
[1772939926955,8.9300681,82.592,82.543,10.904]
[1772939928355,8.9390796,82.59,82.543,10.904]
[1772939929051,8.9390796,82.59,82.549,10.904]
[1772939929257,8.9390796,82.59,82.55,2.73691026]
[1772939930754,8.9390796,82.59,82.552,10.903]
[1772939935660,8.9390796,82.59,82.55,2.73691026]
[1772939938862,8.9390796,82.59,82.544,10.904]
[1772939940364,8.82803981,82.588,82.54,2.73691026]
[1772939941863,8.82813086,82.586,82.54,2.73691026]
[1772939942061,8.82813086,82.586,82.53,2.73691026]
[1772939943865,8.82371102,82.576,82.53,2.73691026]
[1772939944070,8.82371102,82.576,82.54,2.73691026]
[1772939945568,8.82371102,82.576,82.528,10.906]
[1772939945772,8.82371102,82.576,82.53,2.73691026]
[1772939945971,8.82371102,82.576,82.54,2.73691026]
[1772939947870,8.82371102,82.576,82.53,2.73691026]
[1772939949374,8.82371102,82.576,82.533,10.906]
[1772939951974,8.82371102,82.576,82.54,2.73691026]
[1772939960972,8.82371102,82.576,82.484,21.825]
[1772939960973,9.10673471,82.609,82.57,2.73691026]
[1772939961984,9.10696259,82.608,82.57,2.73691026]
[1772939967281,9.15728906,82.605,82.55,2.73691026]
[1772939968688,9.2130191,82.599,82.54,2.73620447]
[1772939969181,9.213056,82.589,82.55,2.73620447]
[1772939970197,9.27260578,82.606,82.56,2.73620447]
[1772939970394,9.27260578,82.606,82.524,30.15360452]
[1772939970395,9.27260578,82.606,82.57,2.73620447]
[1772939971997,9.27260578,82.606,82.561,10.902]
[1772939975193,9.27274163,82.599,82.526,30.15360452]
[1772939975503,9.27274163,82.599,82.5,83.821]
[1772939975504,9.27274163,82.599,82.55,2.73620447]
[1772939976903,9.27274163,82.599,82.56,10.902]
[1772939978607,9.27274163,82.599,82.56,13.63820447]
[1772939982807,9.27274163,82.599,82.56,10.902]
[1772939983008,9.27274163,82.599,82.56,13.63820447]
[1772939987610,9.27274163,82.599,82.57,2.73620447]
[1772939988315,9.27274163,82.599,82.567,10.901]
[1772939989110,9.26902636,82.619,82.58,2.73620447]
[1772939990918,9.26902636,82.619,82.581,10.899]
[1772939991120,9.26902636,82.619,82.59,2.73620447]
[1772939993917,9.26810377,82.635,82.59,2.73620447]
[1772939995013,9.26810377,82.635,82.591,10.898]
[1772940001027,9.26887411,82.619,82.539,21.81]
[1772940001225,9.26887411,82.619,82.57,2.73620447]
[1772940001421,9.26883529,82.61,82.57,2.73620447]
[1772940001628,9.26883529,82.609,82.56,2.73620447]
[1772940002131,9.26883529,82.609,82.57,2.73620447]
[1772940003925,9.26883529,82.609,82.574,10.9]
[1772940006827,9.26883529,82.609,82.57,2.73620447]
[1772940008134,9.27245013,82.601,82.56,2.73620447]
[1772940010527,9.28828987,82.598,82.54,2.73620447]
[1772940010727,9.28828987,82.598,82.55,2.73620447]
[1772940010927,9.28828987,82.598,82.56,2.73620447]
[1772940018338,9.28828987,82.598,82.552,10.903]
[1772940024847,9.28828987,82.598,82.56,2.73620447]
[1772940030650,9.28828987,82.598,82.56,2.73560091]
[1772940031552,9.2271059,82.608,82.57,2.73560091]
[1772940033954,9.2271059,82.608,82.57,13.63660091]
[1772940034952,9.2271059,82.608,82.58,2.73560091]
[1772940036550,9.2271059,82.608,82.577,10.9]
[1772940038053,9.2271059,82.608,82.57,2.73560091]
[1772940048665,9.2271059,82.608,82.572,10.901]
[1772940054068,9.20844151,82.606,82.549,30.15360452]
[1772940054262,9.20844151,82.606,82.56,2.73560091]
[1772940054462,9.20844151,82.606,82.57,2.73560091]
[1772940058866,9.20844151,82.606,82.571,10.901]
[1772940060171,9.20844151,82.606,82.58,2.73560091]
[1772940061565,9.20844151,82.606,82.571,10.901]
[1772940063774,9.20844151,82.606,82.58,2.73560091]
[1772940063974,9.20844151,82.606,82.571,10.901]
[1772940065680,9.20844151,82.606,82.57,2.73560091]
[1772940066878,9.20844151,82.606,82.56,2.73560091]
[1772940067875,9.20844151,82.606,82.561,10.902]
[1772940072379,9.20844151,82.606,82.545,30.15360452]
[1772940072380,9.16608741,82.604,82.545,30.15360452]
[1772940072585,9.16608741,82.604,82.429,169.868]
[1772940072586,9.16608741,82.589,82.54,2.73560091]
[1772940073084,9.16608741,82.587,82.54,2.73560091]
[1772940074882,9.1709875,82.584,82.54,2.73560091]
[1772940081194,9.1709875,82.584,82.55,2.73560091]
[1772940081689,9.1709875,82.584,82.56,2.73560091]
[1772940084592,9.1709875,82.584,82.547,10.904]
[1772940084593,9.1709875,82.584,82.55,2.73560091]
[1772940089294,9.1709875,82.584,82.54,2.73560091]
[1772940090494,9.1709875,82.584,82.54,2.73675335]
[1772940094591,9.1709875,82.584,82.55,2.73675335]
[1772940103099,9.1709875,82.584,82.538,10.905]
[1772940103302,9.1709875,82.584,82.55,2.73675335]
[1772940118714,9.11354881,82.597,82.56,2.73675335]
[1772940118915,9.11354881,82.597,82.57,2.73675335]
[1772940119613,9.11354881,82.597,82.56,2.73675335]
[1772940121314,9.11435348,82.606,82.58,2.73675335]
[1772940121514,21.777,82.665,82.53,12.12]
[1772940121515,9.11435348,82.642,82.6,2.73675335]
[1772940121715,9.11435348,82.64,82.6,2.73675335]
[1772940122919,9.11112737,82.638,82.6,2.73675335]
[1772940124620,9.11112737,82.638,82.601,10.897]
[1772940128725,9.11112737,82.638,82.6,2.73675335]
[1772940129222,9.11112737,82.638,82.593,10.898]
[1772940129720,9.11112737,82.638,82.556,30.15360452]
[1772940129721,9.14293989,82.634,82.583,10.899]
[1772940129926,9.14293989,82.629,82.583,10.899]
[1772940132028,9.14293989,82.629,82.58,2.73675335]
[1772940132329,9.14293989,82.629,82.59,2.73675335]
[1772940134230,9.14293989,82.629,82.6,2.73675335]
[1772940134437,9.15060102,82.64,82.6,2.73675335]
[1772940138846,9.09463583,82.638,82.6,2.73675335]
[1772940145844,9.09463583,82.638,82.59,2.73675335]
[1772940146049,9.09463583,82.638,82.588,10.898]
[1772940146848,9.10701385,82.635,82.588,10.898]
[1772940147651,9.10701385,82.635,82.59,2.73675335]
[1772940150952,9.08573245,82.633,82.59,2.73675335]
[1772940152555,9.08573245,82.633,82.588,10.898]
[1772940155151,9.08573245,82.633,82.59,2.7336462]
[1772940162358,9.08573245,82.633,82.592,10.898]
[1772940164060,7.55,82.639,82.61,2.7336462]
[1772940164266,9.09027863,82.638,82.6,2.7336462]
[1772940164461,9.09027863,82.638,82.573,30.15360452]
[1772940164764,9.09027863,82.638,82.59,2.7336462]
[1772940166559,9.10044069,82.629,82.557,30.15360452]
[1772940166758,2.7336462,82.62,82.57,2.7336462]
[1772940167067,9.10044069,82.619,82.56,2.7336462]
[1772940167866,9.10044069,82.619,82.57,2.7336462]
[1772940173373,9.10044069,82.619,82.565,10.902]
[1772940173374,9.0945917,82.609,82.558,10.903]
[1772940173570,9.0945917,82.609,82.56,2.7336462]
[1772940174870,9.0945917,82.609,82.558,10.903]
[1772940178474,9.0945917,82.609,82.56,2.7336462]
[1772940178675,9.0945917,82.609,82.558,10.903]
[1772940179271,9.10529373,82.607,82.55,13.6376462]
[1772940179876,9.10529373,82.607,82.558,10.903]
[1772940180574,9.10529373,82.607,82.51,21.818]
[1772940180575,9.10537139,82.589,82.53,2.7336462]
[1772940180772,9.10537139,82.589,82.46,177.0]
[1772940180773,9.10537139,82.559,82.491,30.15360452]
[1772940180976,9.10537139,82.549,82.49,2.7336462]
[1772940181871,9.10537139,82.549,82.492,10.911]
[1772940182072,9.10560245,82.539,82.457,30.15360452]
[1772940182273,9.10560245,82.539,82.48,2.7336462]
[1772940183478,9.07417347,82.559,82.5,2.7336462]
[1772940183776,9.07417347,82.559,82.51,2.7336462]
[1772940183976,9.07417347,82.559,82.5,2.7336462]
[1772940184473,9.07417347,82.559,82.51,2.7336462]
[1772940185566,9.07417347,82.559,82.52,2.7336462]
[1772940185976,9.07417347,82.559,82.502,10.91]
[1772940186173,9.07417347,82.559,82.51,2.7336462]
[1772940187674,9.07417347,82.559,82.5,2.7336462]
[1772940187977,9.07417347,82.559,82.51,2.7336462]
[1772940188777,9.08030149,82.557,82.51,2.7336462]
[1772940188980,21.786,82.631,82.47,62.0]
[1772940188981,9.08030149,82.589,82.54,2.7336462]
[1772940189273,9.08055122,82.555,82.51,2.7336462]
[1772940190075,9.08055122,82.555,82.52,2.7336462]
[1772940195374,9.08055122,82.555,82.496,10.911]
[1772940195573,9.08055122,82.555,82.51,2.7336462]
[1772940199388,9.08055122,82.555,82.5,2.7336462]
[1772940199975,9.08055122,82.555,82.51,2.7336462]
[1772940200784,9.05384554,82.551,82.51,2.7336462]
[1772940202887,9.05384554,82.551,82.5,2.7336462]
[1772940204087,9.05384554,82.551,82.501,10.91]
[1772940204289,9.05384554,82.551,82.51,2.7336462]
[1772940207089,9.05384554,82.551,82.52,2.7336462]
[1772940210386,9.05384554,82.551,82.508,10.909]
[1772940210586,9.05384554,82.551,82.51,2.7336462]
[1772940211183,9.05384554,82.551,82.511,10.909]
[1772940211991,9.05043276,82.55,82.503,10.91]
[1772940213890,9.04492892,82.548,82.503,10.91]
[1772940214694,9.04492892,82.548,82.51,2.7393547]
[1772940216687,9.04647054,82.546,82.5,2.7393547]
[1772940217792,9.04669716,82.544,82.5,2.7393547]
[1772940218295,9.04915815,82.542,82.49,2.7393547]
[1772940218797,9.04915815,82.539,82.49,2.7393547]
[1772940220501,9.04915815,82.539,82.5,2.7393547]
[1772940225611,8.59,82.556,82.53,2.7393547]
[1772940226014,9.05053884,82.609,82.55,2.7393547]
[1772940226216,9.05053884,82.607,82.55,2.7393547]
[1772940226807,9.04113967,82.599,82.56,2.7393547]
[1772940227013,9.04113967,82.599,82.57,2.7393547]
[1772940227311,9.04113967,82.599,82.56,2.7393547]
[1772940228612,9.03835934,82.598,82.56,2.7393547]
[1772940241015,11.5,82.599,82.58,2.7393547]
[1772940241212,9.03802257,82.62,82.59,2.7393547]
[1772940242420,9.02676305,82.651,82.61,2.7393547]
[1772940242618,9.02676305,82.651,82.62,2.7393547]
[1772940243420,10.887,82.679,82.63,2.7393547]
[1772940243612,9.02720795,82.678,82.63,2.7393547]
[1772940244122,9.02720795,82.676,82.63,2.7393547]
[1772940245423,9.01609138,82.674,82.63,2.7393547]
[1772940248423,2.7393547,82.66,82.6,2.7393547]
[1772940248628,9.01464808,82.649,82.6,2.7393547]
[1772940248924,9.01464808,82.649,82.602,10.897]
[1772940249328,9.01464808,82.649,82.61,2.7393547]
[1772940249530,9.01464808,82.649,82.602,10.897]
[1772940259232,9.03825364,82.647,82.602,10.897]
[1772940259624,10.893,82.633,82.59,2.7393547]
[1772940259932,2.7393547,82.64,82.59,2.7393547]
[1772940259933,9.03840205,82.632,82.59,2.7393547]
[1772940260837,9.03840205,82.632,82.59,13.6373547]
[1772940262235,9.03840205,82.632,82.59,2.7393547]
[1772940266838,9.04135879,82.622,82.58,2.7393547]
[1772940267040,9.04135879,82.622,82.59,2.7393547]
[1772940268944,9.04135879,82.622,82.582,10.899]
[1772940275848,9.04212809,82.641,82.59,2.73404107]
[1772940278056,9.04212809,82.641,82.6,2.73404107]
[1772940278245,9.04212809,82.641,82.59,2.73404107]
[1772940278448,9.04212809,82.641,82.592,10.898]
[1772940278949,9.03632823,82.638,82.592,10.898]
[1772940284652,9.03632823,82.638,82.598,10.897]
[1772940288549,9.03632823,82.638,82.591,10.898]
[1772940289158,7.84,82.637,82.591,10.898]
[1772940289358,9.02761887,82.636,82.591,10.898]
[1772940293765,9.02761887,82.636,82.6,2.73404107]
[1772940294565,9.02761887,82.636,82.59,2.73404107]
[1772940295569,9.02761887,82.636,82.58,2.73404107]
[1772940296765,9.04702523,82.628,82.58,2.73404107]
[1772940306569,9.04858503,82.625,82.577,10.9]
[1772940306779,9.04858503,82.625,82.58,2.73404107]
[1772940307877,9.0486654,82.623,82.58,2.73404107]
[1772940308573,10.894,82.621,82.57,13.63504107]
[1772940308777,8.99589604,82.62,82.57,13.63504107]
[1772940309780,8.9959968,82.609,82.55,2.73404107]
[1772940310478,8.99978759,82.601,82.55,13.63804107]
[1772940322181,8.99978759,82.601,82.56,2.73404107]
[1772940334493,8.99978759,82.601,82.56,2.73564804]
[1772940334691,8.99978759,82.601,82.55,2.73564804]
[1772940334891,8.98251572,82.599,82.54,2.73564804]
[1772940335098,8.98251572,82.599,82.541,10.905]
[1772940335896,8.98259437,82.585,82.533,10.906]
[1772940336589,8.98278807,82.583,82.53,2.73564804]
[1772940337690,8.98278807,82.583,82.55,2.73564804]
[1772940338095,8.98278807,82.583,82.54,2.73564804]
[1772940340889,9.34,82.582,82.54,2.73564804]
[1772940341094,8.95595255,82.581,82.54,2.73564804]
[1772940349695,8.95595255,82.581,82.532,10.906]
[1772940351806,8.95595255,82.581,82.54,2.73564804]
[1772940356009,8.95595255,82.581,82.55,2.73564804]
[1772940362319,8.95901425,82.603,82.56,2.73564804]
[1772940363417,8.95904774,82.6,82.56,2.73564804]
[1772940371319,8.95904774,82.6,82.561,10.902]
[1772940378322,8.95904774,82.6,82.56,2.73564804]
[1772940378526,8.99254685,82.598,82.54,2.73564804]
[1772940378728,8.99254685,82.598,82.55,2.73564804]
[1772940379927,8.99259124,82.592,82.55,2.73564804]
[1772940388537,8.97378927,82.587,82.527,30.15360452]
[1772940388742,8.97378927,82.587,82.54,2.73564804]
[1772940389239,10.899,82.586,82.54,2.73564804]
[1772940389443,8.97378927,82.585,82.54,2.73564804]
[1772940392042,8.9784884,82.583,82.52,2.73564804]
[1772940392242,8.9784884,82.583,82.53,2.73564804]
[1772940393848,8.97876263,82.582,82.53,13.64164804]
[1772940394248,13.50876263,82.626,82.57,2.73564804]
[1772940394440,13.50876263,82.626,82.58,2.73564804]
[1772940395746,13.50876263,82.626,82.57,2.73564804]
[1772940396549,13.50876263,82.626,82.57,2.73454392]
[1772940398351,13.45458029,82.624,82.57,2.73454392]
[1772940400753,13.45458029,82.624,82.573,10.9]
[1772940401051,8.24,82.625,82.59,2.73454392]
[1772940401252,8.24,82.625,82.492,169.737]
[1772940401253,8.24,82.625,82.6,2.73454392]
[1772940401853,8.24,82.625,82.591,10.898]
[1772940402255,8.24,82.625,82.582,10.899]
[1772940403857,13.43680188,82.624,82.572,10.901]
[1772940404057,13.43680188,82.624,82.58,2.73454392]
[1772940405661,13.43680188,82.624,82.57,2.73454392]
[1772940406549,13.50704299,82.619,82.571,10.901]
[1772940406951,13.50704299,82.609,82.56,2.73454392]
[1772940407350,13.50704299,82.599,82.55,2.73454392]
[1772940408755,13.50704299,82.599,82.553,10.903]
[1772940410163,13.50704299,82.599,82.561,10.902]
[1772940411665,13.50704299,82.599,82.57,2.73454392]
[1772940414261,13.50704299,82.599,82.561,10.902]
[1772940417664,13.51548805,82.619,82.568,10.901]
[1772940417859,13.51548805,82.619,82.57,2.73454392]
[1772940418566,13.51548805,82.619,82.58,2.73454392]
[1772940419866,13.51548805,82.619,82.583,10.899]
[1772940420366,13.51548805,82.619,82.59,2.73454392]
[1772940420967,8.24,82.625,82.592,10.898]
[1772940421169,8.24,82.625,82.6,2.73454392]
[1772940421659,8.24,82.625,82.592,10.898]
[1772940423368,13.51157132,82.63,82.592,10.898]
[1772940424868,13.51157132,82.63,82.584,10.899]
[1772940426470,13.51157132,82.63,82.59,2.73454392]
[1772940430967,13.51157132,82.63,82.592,10.898]
[1772940453988,13.51157132,82.63,82.601,10.897]
[1772940465094,13.51157132,82.63,82.58,2.73268255]
[1772940465890,16.24425387,82.63,82.58,2.73268255]
[1772940466089,13.50955567,82.625,82.57,2.73268255]
[1772940478404,13.50955567,82.625,82.58,2.73268255]
[1772940480112,13.50955567,82.625,82.59,2.73268255]
[1772940481306,13.50955567,82.625,82.581,10.899]
[1772940488905,13.50955567,82.625,82.588,10.898]
[1772940489510,13.50955567,82.625,82.594,10.898]
[1772940493612,13.50955567,82.625,82.6,2.73268255]
[1772940495209,13.39207708,82.634,82.601,10.897]
[1772940496614,13.39207708,82.634,82.61,2.73268255]
[1772940497917,13.39207708,82.634,82.601,10.897]
[1772940499915,13.39207708,82.634,82.594,10.898]
[1772940502417,13.39207708,82.634,82.6,2.73268255]
[1772940510222,13.39207708,82.634,82.594,10.898]
[1772940517326,13.39207708,82.634,82.59,2.73268255]
[1772940520533,13.39207708,82.634,82.59,2.73353914]
[1772940521237,13.39207708,82.634,82.6,2.73353914]
[1772940524234,13.39207708,82.634,82.592,10.898]
[1772940529846,13.39207708,82.634,82.6,2.73353914]
[1772940537351,13.39207708,82.634,82.61,2.73353914]
[1772940539748,13.39207708,82.634,82.6,2.73353914]
[1772940541850,13.39207708,82.634,82.61,2.73353914]
[1772940542049,13.43903998,82.655,82.62,2.73353914]
[1772940542245,13.43903998,82.655,82.6,2.73353914]
[1772940544754,13.43081258,82.651,82.6,2.73353914]
[1772940551566,13.43081258,82.651,82.601,10.897]
[1772940551961,13.43081258,82.651,82.61,2.73353914]
[1772940553570,13.43081258,82.651,82.6,2.73353914]
[1772940554665,24.32081258,82.651,82.6,2.73353914]
[1772940554865,13.47329933,82.65,82.601,10.897]
[1772940558777,13.47329933,82.65,82.61,10.896]
[1772940560877,13.47329933,82.65,82.616,10.895]
[1772940561176,13.47329933,82.65,82.6,2.73353914]
[1772940562873,13.47329933,82.65,82.609,10.896]
[1772940563073,13.47329933,82.65,82.61,2.73353914]
[1772940563383,13.47329933,82.65,82.609,10.896]
[1772940566285,13.47329933,82.65,82.616,10.895]
[1772940568280,13.47329933,82.65,82.608,10.896]
[1772940572784,13.4591513,82.647,82.6,10.897]
[1772940573087,13.4591513,82.629,82.58,2.73353914]
[1772940574688,13.4591513,82.629,82.558,30.15360452]
[1772940574891,10.893,82.627,82.58,2.73353914]
[1772940575188,13.46585634,82.626,82.58,2.73353914]
[1772940580495,13.46585634,82.626,82.58,2.73410005]
[1772940582791,13.46585634,82.626,82.581,10.899]
[1772940590293,13.50530045,82.624,82.574,10.9]
[1772940592098,13.50530045,82.624,82.58,2.73410005]
[1772940593397,13.50530045,82.624,82.574,10.9]
[1772940593398,10.894,82.623,82.574,10.9]
[1772940593598,13.56607159,82.622,82.574,10.9]
[1772940594797,10.894,82.62,82.57,2.73410005]
[1772940594993,13.56530949,82.619,82.57,2.73410005]
[1772940596397,13.55377757,82.617,82.57,2.73410005]
[1772940597800,10.895,82.616,82.57,2.73410005]
[1772940598096,13.55378039,82.615,82.57,2.73410005]
[1772940598697,13.55378039,82.615,82.573,10.901]
[1772940598901,13.5569206,82.625,82.58,2.73410005]
[1772940603499,2.73410005,82.61,82.56,2.73410005]
[1772940603698,13.64490194,82.609,82.55,2.73410005]
[1772940604805,13.65721499,82.597,82.55,2.73410005]
[1772940607398,13.65721499,82.597,82.547,10.904]
[1772940607399,13.65721499,82.597,82.56,2.73410005]
[1772940609303,13.65592891,82.591,82.54,2.73410005]
[1772940610107,13.65593015,82.587,82.541,10.905]
[1772940610910,13.65593015,82.587,82.55,2.73410005]
[1772940617111,13.66786204,82.611,82.534,30.15360452]
[1772940617408,13.66786204,82.611,82.58,2.73410005]
[1772940620916,13.66786204,82.611,82.57,2.73410005]
[1772940622515,21.779,82.66,82.58,2.73410005]
[1772940622710,13.6540647,82.629,82.59,2.73410005]
[1772940625016,13.6540647,82.629,82.592,10.898]
[1772940628122,13.6540647,82.629,82.6,13.63110005]
[1772940628719,13.6540647,82.629,82.6,2.73410005]
[1772940628922,13.6540647,82.629,82.591,10.898]
[1772940638722,13.6540647,82.629,82.59,2.73410005]
[1772940638929,13.66593012,82.628,82.58,2.73410005]
[1772940640927,13.66593012,82.628,82.58,13.63410005]
[1772940642530,13.66593012,82.628,82.58,13.63442029]
[1772940643833,13.66593012,82.628,82.59,2.73442029]
[1772940648928,13.66593012,82.628,82.592,10.898]
[1772940651139,13.66593012,82.628,82.6,2.73442029]
[1772940656540,13.66593012,82.628,82.592,10.898]
[1772940658444,13.66593012,82.628,82.59,2.73442029]
[1772940659543,13.66593012,82.628,82.585,10.899]
[1772940660550,13.66593012,82.628,82.59,2.73442029]
[1772940669754,13.66593012,82.628,82.596,10.898]
[1772940669953,13.66593012,82.628,82.59,2.73442029]
[1772940673761,13.66593012,82.628,82.58,2.73442029]
[1772940673957,2.73442029,82.62,82.56,62.0]
[1772940674159,2.73442029,82.58,82.531,3.87495591]
[1772940674363,4.05657618,82.569,82.521,3.87495591]
[1772940674960,4.05657618,82.569,82.501,2.107756]
[1772940674961,4.05657618,82.569,82.53,6.6093762]
[1772940675160,4.05657618,82.569,82.531,3.87495591]
[1772940675663,4.05657618,82.589,82.541,3.87495591]
[1772940678166,4.05657618,82.589,82.535,10.906]
[1772940678465,4.05657618,82.589,82.378,97.01335976]
[1772940678466,4.05657618,82.549,82.493,3.87495591]
[1772940678658,4.05657618,82.549,82.5,2.73442029]
[1772940678863,4.05657618,82.549,82.51,2.73442029]
[1772940679058,4.05657618,82.569,82.511,3.87495591]
[1772940679362,4.05657618,82.569,82.471,2.10864362]
[1772940679363,2.73442029,82.55,82.5,2.73442029]
[1772940679558,4.05657618,82.549,82.5,2.73442029]
[1772940680763,4.05657618,82.568,82.52,2.73442029]
[1772940683162,4.05657618,82.568,82.53,2.73442029]
[1772940685066,4.05657618,82.568,82.52,2.73442029]
[1772940685271,4.05657618,82.559,82.5,2.73442029]
[1772940685471,4.05657618,82.559,82.51,2.73442029]
[1772940686073,4.05657618,82.558,82.52,2.73442029]
[1772940686668,4.05657618,82.558,82.53,2.73442029]
[1772940687670,4.05657618,82.558,82.52,2.73442029]
[1772940688974,4.05657618,82.558,82.51,6.6093762]
[1772940689376,4.05657618,82.558,82.52,2.73442029]
[1772940690278,4.05657618,82.553,82.51,2.73442029]
[1772940690478,4.05657618,82.553,82.5,2.73442029]
[1772940690879,4.05657618,82.553,82.51,2.73442029]
[1772940691777,4.05657618,82.549,82.51,2.73442029]
[1772940693977,3.91548762,82.541,82.5,2.73442029]
[1772940694487,2.73442029,82.56,82.5,2.73442029]
[1772940694488,3.91548762,82.539,82.5,2.73442029]
[1772940694984,3.91548762,82.536,82.5,2.73442029]
[1772940696181,3.91548762,82.533,82.5,2.73442029]
[1772940696381,3.91548762,82.533,82.49,2.73442029]
[1772940697786,3.91548762,82.529,82.49,2.73442029]
[1772940698183,3.91548762,82.529,82.5,2.73442029]
[1772940698388,10.907,82.527,82.5,2.73442029]
[1772940698688,14.82248762,82.527,82.5,2.73442029]
[1772940698890,3.91548762,82.526,82.5,2.73442029]
[1772940699088,3.91548762,82.524,82.5,2.73442029]
[1772940699286,3.91548762,82.524,82.49,2.73442029]
[1772940700890,3.91548762,82.513,82.463,10.915]
[1772940701092,3.91548762,82.513,82.47,2.73442029]
[1772940701293,3.91548762,82.513,82.457,3.99019628]
[1772940701294,3.91548762,82.513,82.46,2.73442029]
[1772940702296,3.91548762,82.513,82.47,2.73442029]
[1772940702494,3.91548762,82.512,82.47,2.73442029]
[1772940703494,3.91548762,82.512,82.46,2.73442029]
[1772940703894,3.91548762,82.5,82.46,2.73442029]
[1772940704497,3.91548762,82.5,82.47,2.74223844]
[1772940705295,3.91548762,82.498,82.46,2.74223844]
[1772940706099,3.91548762,82.496,82.46,2.74223844]
[1772940710602,3.91548762,82.493,82.46,2.74223844]
[1772940711803,10.911,82.492,82.46,2.74223844]
[1772940712308,3.91548762,82.493,82.46,2.74223844]
[1772940713001,3.91548762,82.507,82.47,2.74223844]
[1772940713605,3.91548762,82.505,82.47,2.74223844]
[1772940715704,3.91548762,82.505,82.43,62.0]
[1772940715705,3.91548762,82.516,82.49,2.74223844]
[1772940716202,3.91548762,82.515,82.47,6.73243472]
[1772940716607,3.91548762,82.515,82.48,2.74223844]
[1772940717697,3.91548762,82.515,82.47,6.73243472]
[1772940717901,10.909,82.506,82.47,6.73243472]
[1772940719704,3.91548762,82.513,82.471,3.99019628]
[1772940719905,3.91548762,82.513,82.48,2.74223844]
[1772940720203,3.91548762,82.513,82.49,2.74223844]
[1772940720606,3.91548762,82.513,82.48,2.74223844]
[1772940725512,4.02792387,82.528,82.49,6.49071316]
[1772940725712,4.02792387,82.528,82.5,2.74223844]
[1772940725913,4.02792387,82.528,82.49,6.49071316]
[1772940726701,4.02792387,82.528,82.491,3.74847472]
[1772940726913,14.93292387,82.537,82.5,2.74223844]
[1772940727215,4.02792387,82.536,82.491,3.74847472]
[1772940728807,14.93392387,82.531,82.491,3.74847472]
[1772940729404,10.906,82.531,82.501,3.74847472]
[1772940730614,10.907,82.524,82.49,2.74223844]
[1772940730811,4.02792387,82.523,82.49,2.74223844]
[1772940731717,4.02792387,82.522,82.484,3.74847472]
[1772940732212,4.02792387,82.519,82.48,2.74223844]
[1772940732418,4.02792387,82.519,82.475,14.66147472]
[1772940732814,4.02792387,82.516,82.48,2.74223844]
[1772940733811,4.02792387,82.511,82.475,3.74847472]
[1772940735519,4.02792387,82.511,82.48,2.74223844]
[1772940735920,10.908,82.517,82.481,3.74847472]
[1772940736624,10.905,82.537,82.5,2.74223844]
[1772940736824,4.02792387,82.536,82.491,3.74847472]
[1772940737425,4.02792387,82.532,82.491,3.74847472]
[1772940744232,10.906,82.531,82.491,3.74847472]
[1772940744429,14.93392387,82.531,82.491,3.74847472]
[1772940744633,4.02792387,82.53,82.491,3.74847472]
[1772940750637,10.907,82.527,82.491,3.74847472]
[1772940750837,4.02792387,82.526,82.491,3.74847472]
[1772940754437,10.904,82.545,82.501,3.69087448]
[1772940754641,9.93103198,82.544,82.511,3.69087448]
[1772940754840,4.05549426,82.552,82.511,3.69087448]
[1772940755541,4.05549426,82.552,82.52,6.43311292]
[1772940755743,4.05549426,82.552,82.521,3.69087448]
[1772940756641,4.05549426,82.548,82.5,2.74223844]
[1772940757450,4.05549426,82.548,82.493,3.69087448]
[1772940757848,4.05549426,82.548,82.494,3.69087448]
[1772940758245,4.05549426,82.548,82.49,2.74223844]
[1772940758449,4.05549426,82.538,82.49,3.69087448]
[1772940759447,2.74223844,82.53,82.49,3.69087448]
[1772940759653,2.74223844,82.53,82.481,3.69087448]
[1772940759654,4.05549426,82.529,82.481,3.69087448]
[1772940760753,4.05549426,82.526,82.481,3.69087448]
[1772940761752,4.05549426,82.526,82.483,3.69087448]
[1772940763055,4.05549426,82.539,82.49,2.74223844]
[1772940763252,4.05549426,82.539,82.491,3.69087448]